bitfinex/quotes_BTCUSD_20250617
["timestamp","ask_amount","ask_price","bid_price","bid_amount"]
[1750186124809,0.21117267,104180.0,104170.0,1.13659151]
[1750186125043,0.21117267,104180.0,104170.0,1.14619074]
[1750186125500,0.00959831,104180.0,104170.0,1.14619009]
[1750186125747,0.21115242,104190.0,104180.0,0.2441724]
[1750186125979,0.2207499,104190.0,104180.0,0.60745213]
[1750186126205,0.20155485,104190.0,104180.0,0.63643891]
[1750186126483,0.29779661,104190.0,104180.0,0.0932866]
[1750186126711,0.35169876,104190.0,104180.0,0.36096624]
[1750186127400,0.35169876,104190.0,104180.0,0.37096624]
[1750186127629,0.35169876,104190.0,104180.0,0.0289866]
[1750186127855,0.35169876,104190.0,104180.0,0.0339866]
[1750186128077,0.35169876,104190.0,104180.0,0.005]
[1750186128974,0.35087781,104190.0,104180.0,0.00418978]
[1750186129434,0.35087781,104190.0,104180.0,0.00518978]
[1750186130759,0.35087781,104190.0,104180.0,0.001]
[1750186130965,0.201574,104180.0,104170.0,0.67197964]
[1750186131176,0.36151576,104180.0,104170.0,0.67197964]
[1750186132315,0.33051576,104180.0,104170.0,0.67197964]
[1750186132550,0.29781576,104180.0,104170.0,0.69119964]
[1750186132785,0.29781576,104180.0,104170.0,0.69319964]
[1750186132999,0.29781576,104180.0,104170.0,0.69519964]
[1750186135630,0.45765576,104180.0,104170.0,0.69519964]
[1750186139286,0.52889494,104180.0,104170.0,0.69519964]
[1750186139487,0.59399494,104180.0,104170.0,0.69519964]
[1750186139690,0.52275576,104180.0,104170.0,0.69519964]
[1750186140104,0.45765576,104180.0,104170.0,0.69519964]
[1750186140963,0.45761576,104180.0,104170.0,0.91759349]
[1750186141164,0.45761576,104180.0,104170.0,0.75819964]
[1750186142099,0.45761576,104180.0,104170.0,0.95019349]
[1750186142302,0.45761576,104180.0,104170.0,0.75819964]
[1750186142520,0.21117249,104180.0,104170.0,0.96939259]
[1750186142709,0.21117249,104180.0,104170.0,0.98859104]
[1750186143179,0.01919707,104180.0,104170.0,1.04584832]
[1750186143388,0.23036993,104180.0,104170.0,1.04584832]
[1750186144016,0.19113605,104190.0,104170.0,0.96364885]
[1750186144229,0.01919606,104180.0,104170.0,0.65086711]
[1750186144445,0.01919615,104180.0,104170.0,0.98284675]
[1750186144659,0.01919615,104180.0,104170.0,1.04844675]
[1750186144874,0.01919615,104180.0,104170.0,0.71646711]
[1750186145090,0.01919615,104180.0,104170.0,0.71446711]
[1750186145091,0.02879455,104180.0,104170.0,0.71446711]
[1750186145304,0.01919615,104180.0,104170.0,0.71446711]
[1750186145950,0.01919615,104180.0,104170.0,1.04644675]
[1750186146367,0.02879455,104180.0,104170.0,1.04644675]
[1750186146787,0.02879455,104180.0,104170.0,1.04844675]
[1750186147209,0.03839313,104180.0,104170.0,0.99118947]
[1750186147414,0.02879455,104180.0,104170.0,0.99118947]
[1750186147622,0.02879455,104180.0,104170.0,0.98718947]
[1750186147811,0.02879455,104180.0,104170.0,0.99018947]
[1750186148262,0.02879455,104180.0,104170.0,0.98718947]
[1750186148480,0.22075155,104190.0,104180.0,0.28337089]
[1750186148685,0.2303494,104190.0,104180.0,0.71065017]
[1750186148895,0.22075202,104190.0,104180.0,0.88026519]
[1750186149109,0.21115436,104190.0,104180.0,0.88026519]
[1750186149559,0.20155661,104190.0,104180.0,0.88026519]
[1750186149757,0.20155661,104190.0,104180.0,0.88986386]
[1750186149962,0.19195876,104190.0,104180.0,0.678691]
[1750186150176,0.19195876,104190.0,104180.0,0.34671136]
[1750186150417,0.19195876,104190.0,104180.0,0.678691]
[1750186152347,0.19195876,104190.0,104180.0,0.87066642]
[1750186152969,0.19195876,104190.0,104180.0,0.88026519]
[1750186153396,0.19195876,104190.0,104180.0,0.678691]
[1750186155050,0.19195876,104190.0,104180.0,0.647491]
[1750186155230,0.19195876,104190.0,104180.0,0.487651]
[1750186155866,0.19195876,104190.0,104180.0,0.70992642]
[1750186156071,0.19195876,104190.0,104180.0,0.71952519]
[1750186156514,0.19195876,104190.0,104180.0,0.52754977]
[1750186156727,0.19195876,104190.0,104180.0,0.71952519]
[1750186157153,0.19195876,104190.0,104180.0,0.72912386]
[1750186157386,0.19195876,104190.0,104180.0,0.75794235]
[1750186157805,0.19195876,104190.0,104180.0,0.74834386]
[1750186158515,0.19195876,104190.0,104180.0,0.75794244]
[1750186159158,0.19195876,104190.0,104180.0,0.76754093]
[1750186159593,0.19195876,104190.0,104180.0,0.77713933]
[1750186159806,0.22075008,104190.0,104180.0,0.72942078]
[1750186160484,0.2111526,104190.0,104180.0,0.71022389]
[1750186160925,0.2111526,104190.0,104180.0,0.73875871]
[1750186161154,0.191957,104190.0,104180.0,0.53718462]
[1750186161386,0.35786294,104190.0,104180.0,0.47548462]
[1750186161623,0.35109876,104190.0,104180.0,0.41830495]
[1750186162125,0.35109876,104190.0,104180.0,0.08632531]
[1750186162337,0.51089876,104190.0,104180.0,0.08632531]
[1750186162766,0.51089876,104190.0,104180.0,0.04819191]
[1750186162985,0.51089876,104190.0,104180.0,0.08632531]
[1750186163428,0.51089876,104190.0,104180.0,0.75830495]
[1750186163641,0.51089876,104190.0,104180.0,0.42632531]
[1750186164734,0.49615012,104190.0,104180.0,0.38819191]
[1750186165159,0.49615012,104190.0,104180.0,0.04819191]
[1750186165371,0.49615012,104190.0,104180.0,0.02897191]
[1750186165812,0.263474,104180.0,104170.0,0.67197964]
[1750186166029,0.35971576,104180.0,104170.0,0.67197964]
[1750186167333,0.35971576,104180.0,104170.0,0.67397964]
[1750186167962,0.35971576,104180.0,104170.0,0.67597964]
[1750186168631,0.29781576,104180.0,104170.0,0.67597964]
[1750186168843,0.30741425,104180.0,104170.0,0.87757309]
[1750186169063,0.30741425,104180.0,104170.0,0.91727259]
[1750186169278,0.11543828,104180.0,104170.0,0.96937086]
[1750186169494,0.01919652,104180.0,104170.0,0.96937086]
[1750186169736,0.03839304,104180.0,104170.0,0.96937086]
[1750186169917,0.02879446,104180.0,104170.0,0.96937086]
[1750186170131,0.03839295,104180.0,104170.0,0.96937086]
[1750186170570,0.02879446,104180.0,104170.0,0.96937086]
[1750186170785,0.03839304,104180.0,104170.0,0.96937086]
[1750186171034,0.02879446,104180.0,104170.0,0.96937086]
[1750186171241,0.01919615,104180.0,104170.0,1.02655053]
[1750186171446,0.21115195,104190.0,104180.0,0.24297268]
[1750186171655,0.30739371,104190.0,104180.0,0.95745072]
[1750186171866,0.29779651,104190.0,104180.0,0.97611426]
[1750186172079,0.29779651,104190.0,104180.0,0.96651577]
[1750186172545,0.29779651,104190.0,104180.0,0.94321444]
[1750186172754,0.29779651,104190.0,104180.0,0.95121444]
[1750186172928,0.29779651,104190.0,104180.0,0.96081302]
[1750186173346,0.29779651,104190.0,104180.0,0.95621444]
[1750186173993,0.28819876,104190.0,104180.0,0.94661577]
[1750186174540,0.37812712,104190.0,104180.0,0.43844161]
[1750186174747,0.28819876,104190.0,104180.0,0.71324158]
[1750186174964,0.31979876,104190.0,104180.0,0.71324158]
[1750186175162,0.28819876,104190.0,104180.0,0.71324158]
[1750186175366,0.28579876,104190.0,104180.0,0.71324158]
[1750186180394,0.34979876,104190.0,104180.0,0.38126194]
[1750186180600,0.43948712,104190.0,104180.0,0.38126194]
[1750186180940,0.43948712,104190.0,104180.0,0.71324158]
[1750186181152,0.34979876,104190.0,104180.0,0.71324158]
[1750186181565,0.28579876,104190.0,104180.0,0.71324158]
[1750186181813,0.48795876,104190.0,104180.0,0.71324158]
[1750186182352,0.48795876,104190.0,104180.0,0.38126194]
[1750186182550,0.48795876,104190.0,104180.0,0.71324158]
[1750186182957,0.48795876,104190.0,104180.0,0.38126194]
[1750186183153,0.55275876,104190.0,104180.0,0.71324158]
[1750186183587,0.64252312,104190.0,104180.0,0.71324158]
[1750186183834,0.55275876,104190.0,104180.0,0.71324158]
[1750186184805,0.55275876,104190.0,104180.0,0.04126194]
[1750186187125,0.56729961,104190.0,104180.0,0.04126194]
[1750186188847,0.56729961,104190.0,104180.0,0.013]
[1750186189038,0.5658808,104190.0,104180.0,0.01261008]
[1750186189467,0.66203002,104190.0,104180.0,0.01261008]
[1750186190573,0.5658808,104190.0,104180.0,0.01261008]
[1750186194341,0.34917995,104190.0,104180.0,0.34458972]
[1750186194562,0.32677995,104190.0,104180.0,0.37698972]
[1750186194785,0.28437995,104190.0,104180.0,0.40758972]
[1750186195019,0.28437995,104190.0,104180.0,0.62816071]
[1750186195266,0.47671193,104190.0,104180.0,0.77618529]
[1750186195475,0.46711436,104190.0,104180.0,0.97775948]
[1750186195697,0.45751661,104190.0,104180.0,0.77618529]
[1750186195913,0.45751661,104190.0,104180.0,0.96816071]
[1750186195914,0.44791876,104190.0,104180.0,0.96816071]
[1750186196118,0.44791876,104190.0,104180.0,1.03493915]
[1750186196331,0.28819876,104190.0,104180.0,1.03493905]
[1750186196577,0.44791876,104190.0,104180.0,1.03493905]
[1750186197001,0.28819876,104190.0,104180.0,1.03493905]
[1750186197186,0.44791876,104190.0,104180.0,1.03493905]
[1750186197431,0.44791876,104190.0,104180.0,0.50138532]
[1750186197647,0.44791876,104190.0,104180.0,1.03493915]
[1750186197856,0.44791876,104190.0,104180.0,1.04453773]
[1750186198068,0.28819876,104190.0,104180.0,1.03493905]
[1750186198277,0.28819876,104190.0,104180.0,1.04453763]
[1750186198698,0.44791876,104190.0,104180.0,1.04453763]
[1750186198915,0.28819876,104190.0,104180.0,1.04453763]
[1750186199159,0.30739418,104190.0,104180.0,1.05413612]
[1750186199368,0.13463213,104190.0,104180.0,1.07333237]
[1750186199574,0.12503428,104190.0,104180.0,1.07333191]
[1750186199996,0.13463203,104190.0,104180.0,1.07333191]
[1750186200209,0.12503428,104190.0,104180.0,1.07333191]
[1750186200448,0.13463203,104190.0,104180.0,1.07333191]
[1750186200660,0.32658903,104190.0,104180.0,1.07333191]
[1750186200873,0.33618688,104190.0,104180.0,1.07333191]
[1750186201093,0.12503428,104190.0,104180.0,1.07333191]
[1750186201542,0.32658913,104190.0,104180.0,0.83336496]
[1750186201957,0.30739427,104190.0,104180.0,0.83336496]
[1750186202826,0.38859418,104190.0,104180.0,0.38120565]
[1750186203069,0.30739427,104190.0,104180.0,0.38120565]
[1750186203281,0.30739427,104190.0,104180.0,0.77588529]
[1750186203948,0.10583942,104190.0,104180.0,0.77588529]
[1750186204166,0.3073938,104190.0,104180.0,0.77588529]
[1750186204635,0.3073938,104190.0,104180.0,0.83306496]
[1750186205304,0.3073938,104190.0,104180.0,0.50108532]
[1750186205519,0.3073938,104190.0,104180.0,0.83306496]
[1750186206157,0.125034,104190.0,104180.0,0.83306496]
[1750186206369,0.13463148,104190.0,104180.0,0.83306496]
[1750186206586,0.02879197,104190.0,104180.0,0.83306496]
[1750186206768,0.03838963,104190.0,104180.0,0.83306496]
[1750186207252,0.04798748,104190.0,104180.0,0.83306496]
[1750186207509,0.23994448,104190.0,104180.0,0.83306496]
[1750186207731,0.03838963,104190.0,104180.0,0.83306496]
[1750186207956,0.02879197,104190.0,104180.0,0.83306496]
[1750186208216,0.15294624,104200.0,104190.0,0.4035]
[1750186208462,0.28757432,104200.0,104190.0,1.06745928]
[1750186208693,0.28757423,104200.0,104190.0,1.06745928]
[1750186208963,0.15294005,104200.0,104190.0,1.22713928]
[1750186209192,0.01959,104200.0,104190.0,1.22713928]
[1750186209477,0.02878921,104200.0,104190.0,1.23213928]
[1750186209671,0.03838585,104200.0,104190.0,1.24013928]
[1750186210172,0.03838558,104200.0,104190.0,1.24013928]
[1750186210420,0.02878893,104200.0,104190.0,1.23213928]
[1750186210695,0.03838567,104200.0,104190.0,1.23213928]
[1750186210912,0.03838567,104200.0,104190.0,1.23513928]
[1750186210913,0.23032506,104200.0,104190.0,1.23513928]
[1750186211336,0.23032506,104200.0,104190.0,1.23013928]
[1750186211595,0.02878957,104200.0,104190.0,1.23013928]
[1750186211839,0.22072814,104200.0,104190.0,1.23113928]
[1750186212058,0.21113177,104200.0,104190.0,0.56718]
[1750186212298,0.21113177,104200.0,104190.0,1.23113928]
[1750186213887,0.21113177,104200.0,104190.0,1.26933293]
[1750186214108,0.20153531,104200.0,104190.0,1.26933293]
[1750186214629,0.35310063,104200.0,104190.0,0.44569365]
[1750186214861,0.35310063,104200.0,104190.0,0.70757964]
[1750186215330,0.29777707,104200.0,104190.0,0.344]
[1750186215869,0.36257707,104200.0,104190.0,0.344]
[1750186216496,0.36257707,104200.0,104190.0,0.341]
[1750186216971,0.36257707,104200.0,104190.0,0.348]
[1750186217395,0.36257707,104200.0,104190.0,0.347]
[1750186217840,0.36257707,104200.0,104190.0,0.352]
[1750186218068,0.4340048,104200.0,104190.0,0.352]
[1750186218285,0.4340048,104200.0,104190.0,0.68397964]
[1750186218512,0.44854565,104200.0,104190.0,0.012]
[1750186218729,0.78052529,104200.0,104190.0,0.012]
[1750186219386,0.44854565,104200.0,104190.0,0.007]
[1750186219628,0.26435466,104190.0,104180.0,0.36859557]
[1750186219845,0.58412678,104190.0,104180.0,0.36859557]
[1750186220700,0.62648678,104190.0,104180.0,0.36859557]
[1750186220918,0.56263642,104190.0,104180.0,0.36859557]
[1750186221176,0.56263642,104190.0,104180.0,0.37559557]
[1750186221410,0.56263642,104190.0,104180.0,0.03559557]
[1750186221648,0.56263642,104190.0,104180.0,0.36757521]
[1750186222567,0.36059642,104190.0,104180.0,0.36757521]
[1750186222809,0.56263642,104190.0,104180.0,0.37257521]
[1750186223459,0.52027642,104190.0,104180.0,0.37257521]
[1750186224207,0.48747642,104190.0,104180.0,0.37257521]
[1750186225334,0.49983642,104190.0,104180.0,0.37257521]
[1750186225570,0.29779642,104190.0,104180.0,0.37257521]
[1750186225823,0.49983642,104190.0,104180.0,0.43737521]
[1750186226316,0.29779642,104190.0,104180.0,0.43737521]
[1750186226520,0.45747642,104190.0,104180.0,0.43737521]
[1750186226746,0.29779642,104190.0,104180.0,0.43737521]
[1750186227393,0.45747642,104190.0,104180.0,0.43737521]
[1750186229137,0.29779642,104190.0,104180.0,0.43737521]
[1750186230745,0.29779642,104190.0,104180.0,0.77737521]
[1750186231419,0.30739399,104190.0,104180.0,0.77737521]
[1750186231890,0.29779642,104190.0,104180.0,0.77737521]
[1750186233222,0.10583914,104190.0,104180.0,0.77737521]
[1750186233460,0.13463157,104190.0,104180.0,0.77737521]
[1750186233712,0.12503382,104190.0,104180.0,0.83455488]
[1750186233958,0.14422933,104190.0,104180.0,0.83455488]
[1750186234177,0.13463148,104190.0,104180.0,0.83455488]
[1750186234424,0.00959711,104190.0,104180.0,1.16653452]
[1750186234639,0.2015354,104200.0,104190.0,0.405]
[1750186234640,0.22072815,104200.0,104190.0,0.405]
[1750186234873,0.31696991,104200.0,104190.0,1.06895928]
[1750186235132,0.31696991,104200.0,104190.0,1.12613895]
[1750186235364,0.30737363,104200.0,104190.0,1.12613895]
[1750186235818,0.29777707,104200.0,104190.0,1.06895928]
[1750186236552,0.29777707,104200.0,104190.0,0.74197964]
[1750186236804,0.28818033,104200.0,104190.0,0.74197964]
[1750186237054,0.28818033,104200.0,104190.0,0.74497964]
[1750186238582,0.28818033,104200.0,104190.0,0.413]
[1750186238829,0.28818033,104200.0,104190.0,0.74497964]
[1750186240535,0.28818033,104200.0,104190.0,0.413]
[1750186240776,0.28818033,104200.0,104190.0,0.74497964]
[1750186241451,0.28578033,104200.0,104190.0,0.413]
[1750186241660,0.28578033,104200.0,104190.0,0.74497964]
[1750186242544,0.28578033,104200.0,104190.0,0.3805]
[1750186242779,0.28578033,104200.0,104190.0,0.67997964]
[1750186243208,0.28578033,104200.0,104190.0,0.348]
[1750186243446,0.35148033,104200.0,104190.0,0.348]
[1750186244994,0.28578033,104200.0,104190.0,0.67997964]
[1750186245563,0.28578033,104200.0,104190.0,0.71117964]
[1750186245564,0.44538033,104200.0,104190.0,0.71117964]
[1750186245798,0.44538033,104200.0,104190.0,0.67997964]
[1750186246028,0.48376671,104200.0,104190.0,0.67997964]
[1750186246498,0.54806671,104200.0,104190.0,0.348]
[1750186246721,0.54806671,104200.0,104190.0,0.008]
[1750186247866,0.50968033,104200.0,104190.0,0.33997964]
[1750186248091,0.44538033,104200.0,104190.0,0.33997964]
[1750186248311,0.48770033,104200.0,104190.0,0.37177964]
[1750186248760,0.48770033,104200.0,104190.0,0.37193716]
[1750186249246,0.28578033,104200.0,104190.0,0.36693716]
[1750186249447,0.44538033,104200.0,104190.0,0.39683716]
[1750186249657,0.44538033,104200.0,104190.0,0.40383716]
[1750186249857,0.44538033,104200.0,104190.0,0.40883716]
[1750186250950,0.51741357,104200.0,104190.0,0.37593716]
[1750186251362,0.51741357,104200.0,104190.0,0.34413716]
[1750186256010,0.51741357,104200.0,104190.0,0.01215752]
[1750186256271,0.51741357,104200.0,104190.0,0.34413716]
[1750186259557,0.44538033,104200.0,104190.0,0.34413716]
[1750186260834,0.50908033,104200.0,104190.0,0.01215752]
[1750186262901,0.28578033,104200.0,104190.0,0.34413716]
[1750186263109,0.44534033,104200.0,104190.0,0.40513716]
[1750186264689,0.44534033,104200.0,104190.0,0.37503716]
[1750186264903,0.28578033,104200.0,104190.0,0.37503716]
[1750186265130,0.44534033,104200.0,104190.0,0.37503716]
[1750186265360,0.51330439,104200.0,104190.0,0.37503716]
[1750186266256,0.44534033,104200.0,104190.0,0.40753716]
[1750186267351,0.29777707,104200.0,104190.0,1.0795168]
[1750186267611,0.12503115,104200.0,104190.0,1.13688355]
[1750186267867,0.02878903,104200.0,104190.0,1.13688355]
[1750186268092,0.02878893,104200.0,104190.0,1.13688355]
[1750186268309,0.02878903,104200.0,104190.0,1.13688355]
[1750186268531,0.03838577,104200.0,104190.0,1.13688355]
[1750186268757,0.03838577,104200.0,104190.0,1.29644355]
[1750186269004,0.02878903,104200.0,104190.0,1.29644355]
[1750186269222,0.01919247,104200.0,104190.0,1.29644355]
[1750186269432,0.02878903,104200.0,104190.0,1.29644355]
[1750186269656,0.03838577,104200.0,104190.0,1.29644355]
[1750186269875,0.04798269,104200.0,104190.0,1.29644355]
[1750186270097,0.23032507,104200.0,104190.0,1.29644355]
[1750186270308,0.02878958,104200.0,104190.0,1.29644355]
[1750186271813,0.01919284,104200.0,104190.0,1.29644355]
[1750186272038,0.01919274,104200.0,104190.0,1.29644355]
[1750186273141,0.03838622,104200.0,104190.0,1.29644355]
[1750186273360,0.02878939,104200.0,104190.0,1.29644355]
[1750186273600,0.03838622,104200.0,104190.0,1.29644355]
[1750186273814,0.02878939,104200.0,104190.0,1.29644355]
[1750186274025,0.01919274,104200.0,104190.0,1.29644355]
[1750186274249,0.00959628,104200.0,104190.0,1.29644355]
[1750186274459,0.02878939,104200.0,104190.0,1.29644355]
[1750186274673,0.01919274,104200.0,104190.0,1.29644355]
[1750186275114,0.02878939,104200.0,104190.0,1.29644355]
[1750186275329,0.01919274,104200.0,104190.0,1.29644355]
[1750186275555,0.02878948,104200.0,104190.0,1.29644355]
[1750186276224,0.02878939,104200.0,104190.0,1.29644355]
[1750186276449,0.01919274,104200.0,104190.0,1.29644355]
[1750186276665,0.00959628,104200.0,104190.0,1.29644355]
[1750186276908,0.02878939,104200.0,104190.0,1.29644355]
[1750186277119,0.01919274,104200.0,104190.0,1.29644355]
[1750186278221,0.01919164,104210.0,104200.0,0.4042]
[1750186278437,0.01919164,104210.0,104200.0,0.73617964]
[1750186278438,0.12502894,104210.0,104200.0,0.73617964]
[1750186278650,0.12502894,104210.0,104200.0,0.79354639]
[1750186278858,0.11543294,104210.0,104200.0,0.79354639]
[1750186279070,0.12502885,104210.0,104200.0,0.83179064]
[1750186279290,0.11543294,104210.0,104200.0,0.83179064]
[1750186279512,0.12502885,104210.0,104200.0,0.83179064]
[1750186280217,0.01919118,104210.0,104200.0,0.83179064]
[1750186280651,0.01919062,104210.0,104200.0,0.83179064]
[1750186280982,0.03838189,104210.0,104200.0,0.83179064]
[1750186281211,0.02878616,104210.0,104200.0,0.83179064]
[1750186281441,0.03838179,104210.0,104200.0,0.84379064]
[1750186281667,0.03838179,104210.0,104200.0,0.87031128]
[1750186281896,0.03838179,104210.0,104200.0,0.87231128]
[1750186282162,0.02878616,104210.0,104200.0,0.86731128]
[1750186282418,0.03838179,104210.0,104200.0,0.86931128]
[1750186282657,0.00959517,104210.0,104200.0,0.86931128]
[1750186282899,0.01918952,104220.0,104200.0,0.76686703]
[1750186283130,0.01918989,104220.0,104210.0,0.93390744]
[1750186283369,0.01918952,104220.0,104210.0,0.93390744]
[1750186283806,0.0287846,104220.0,104210.0,0.93390744]
[1750186284026,0.01918952,104220.0,104210.0,0.77438744]
[1750186284240,0.22068625,104220.0,104210.0,0.77438744]
[1750186284451,0.22068625,104220.0,104210.0,0.77638744]
[1750186285109,0.22068625,104220.0,104210.0,0.77838744]
[1750186285318,0.21109163,104220.0,104210.0,0.77838744]
[1750186286161,0.20149673,104220.0,104210.0,0.70897964]
[1750186286441,0.20149673,104220.0,104210.0,0.74027964]
[1750186286679,0.0191897,104220.0,104210.0,0.74027964]
[1750186286914,0.02878378,104220.0,104210.0,0.74027964]
[1750186287151,0.03837868,104220.0,104210.0,0.74027964]
[1750186287835,0.02878378,104220.0,104210.0,0.4083]
[1750186288057,0.02878378,104220.0,104210.0,0.74027964]
[1750186288300,0.03837886,104220.0,104210.0,0.74027964]
[1750186288518,0.23028051,104220.0,104210.0,0.74027964]
[1750186288747,0.03837877,104220.0,104210.0,0.74027964]
[1750186289727,0.22068607,104220.0,104210.0,0.74027964]
[1750186289961,0.22068607,104220.0,104210.0,0.73827964]
[1750186290190,0.22068607,104220.0,104210.0,0.73627964]
[1750186290882,0.21109154,104220.0,104210.0,0.73627964]
[1750186292435,0.21109154,104220.0,104210.0,0.75549964]
[1750186292650,0.21109154,104220.0,104210.0,0.79370744]
[1750186293092,0.21109154,104220.0,104210.0,0.85101914]
[1750186293334,0.0191898,104220.0,104210.0,0.85101914]
[1750186293583,0.02878433,104220.0,104210.0,0.85101914]
[1750186293806,0.25584697,104250.0,104230.0,0.0657]
[1750186294026,0.25584697,104250.0,104240.0,0.73767964]
[1750186294027,0.11542567,104250.0,104240.0,0.73767964]
[1750186294248,0.26274928,104260.0,104240.0,0.73767964]
[1750186294469,0.03836735,104250.0,104240.0,0.56518]
[1750186294703,0.03836726,104250.0,104240.0,0.60332525]
[1750186294919,0.02877512,104250.0,104240.0,0.60332525]
[1750186295365,0.02877503,104250.0,104240.0,0.56518]
[1750186295599,0.02877503,104250.0,104240.0,0.60332525]
[1750186295821,0.1154241,104260.0,104250.0,0.4033]
[1750186296039,0.31684362,104260.0,104250.0,1.06725928]
[1750186296261,0.1154241,104260.0,104250.0,1.06725928]
[1750186296482,0.11542355,104260.0,104250.0,1.06725928]
[1750186296754,0.00959076,104260.0,104250.0,1.12891259]
[1750186296976,0.03836341,104260.0,104250.0,1.16705784]
[1750186297214,0.01918143,104260.0,104250.0,1.16705784]
[1750186297437,0.04795462,104260.0,104250.0,1.12891259]
[1750186297660,0.23654387,104260.0,104250.0,1.13091259]
[1750186297882,0.33278563,104260.0,104250.0,0.40365331]
[1750186298098,0.33278563,104260.0,104250.0,0.56313331]
[1750186298312,0.33278563,104260.0,104250.0,0.89511295]
[1750186298760,0.30725222,104260.0,104250.0,0.89511295]
[1750186298990,0.09624176,104260.0,104250.0,1.28829259]
[1750186299243,0.04425752,104270.0,104260.0,0.0612]
[1750186299469,0.0154881,104270.0,104260.0,0.80554453]
[1750186299897,0.0154881,104270.0,104260.0,0.95900417]
[1750186300328,0.0154881,104270.0,104260.0,1.29900417]
[1750186301432,0.0154881,104270.0,104260.0,1.19954629]
[1750186301648,0.22647777,104270.0,104260.0,0.40884525]
[1750186301906,0.32271999,104270.0,104260.0,0.67197964]
[1750186302147,0.32271999,104270.0,104260.0,0.34]
[1750186302384,0.20141934,104260.0,104250.0,0.22109331]
[1750186302614,0.2976611,104260.0,104250.0,0.88505259]
[1750186302842,0.2976611,104260.0,104250.0,1.22505259]
[1750186303071,0.20141934,104260.0,104250.0,1.29085259]
[1750186303309,0.22060178,104260.0,104250.0,1.29085259]
[1750186303547,0.01918198,104260.0,104250.0,1.29085259]
[1750186304260,0.02877338,104260.0,104250.0,1.29085259]
[1750186304534,0.02877338,104260.0,104250.0,1.29093259]
[1750186304535,0.02877329,104260.0,104250.0,1.29093259]
[1750186304980,0.01918198,104260.0,104250.0,1.04101897]
[1750186305196,0.23019281,104260.0,104250.0,1.04101897]
[1750186305420,0.20729782,104270.0,104260.0,0.34]
[1750186305665,0.03466861,104270.0,104260.0,0.81614566]
[1750186305882,0.23606835,104270.0,104260.0,0.81614566]
[1750186306102,0.32272009,104270.0,104260.0,0.75404566]
[1750186306322,0.32272009,104270.0,104260.0,0.91348566]
[1750186306755,0.31312988,104270.0,104260.0,0.91348566]
[1750186307445,0.31216988,104270.0,104260.0,0.91348566]
[1750186307668,0.31216988,104270.0,104260.0,0.91848566]
[1750186309602,0.31216988,104270.0,104260.0,0.50444]
[1750186309819,0.31216988,104270.0,104260.0,0.91848566]
[1750186310484,0.33135038,104270.0,104260.0,0.95108566]
[1750186310906,0.33135038,104270.0,104260.0,0.94608566]
[1750186311122,0.12035961,104270.0,104260.0,0.94608566]
[1750186311333,0.12994954,104270.0,104260.0,0.56424]
[1750186311543,0.13953975,104270.0,104260.0,0.97828566]
[1750186311757,0.14913014,104270.0,104260.0,0.97828566]
[1750186311966,0.13953975,104270.0,104260.0,0.97828566]
[1750186312449,0.13953965,104270.0,104260.0,0.97828566]
[1750186312678,0.14913004,104270.0,104260.0,0.97828566]
[1750186312896,0.15872052,104270.0,104260.0,0.97828566]
[1750186313102,0.35053024,104270.0,104260.0,0.97828566]
[1750186313315,0.34094049,104270.0,104260.0,0.97828566]
[1750186313744,0.33135056,104270.0,104260.0,0.97828566]
[1750186313985,0.33135056,104270.0,104260.0,0.91348566]
[1750186314198,0.38366483,104270.0,104260.0,0.49944]
[1750186314421,0.38366483,104270.0,104260.0,0.91348566]
[1750186314663,0.3402866,104270.0,104260.0,0.91348566]
[1750186315101,0.34028786,104270.0,104260.0,0.91348566]
[1750186315533,0.13888711,104270.0,104260.0,0.75404566]
[1750186315753,0.14847741,104270.0,104260.0,0.91344566]
[1750186315975,0.14847741,104270.0,104260.0,0.94434566]
[1750186316401,0.12994981,104270.0,104260.0,0.94434566]
[1750186316606,0.1491305,104270.0,104260.0,0.94434566]
[1750186316818,0.14848099,104270.0,104260.0,0.91344566]
[1750186317033,0.3498811,104270.0,104260.0,0.91344566]
[1750186317516,0.34988117,104270.0,104260.0,0.91344566]
[1750186317737,0.34988117,104270.0,104260.0,0.75404566]
[1750186317951,0.39400122,104270.0,104260.0,0.4994]
[1750186318161,0.39400122,104270.0,104260.0,0.34]
[1750186318391,0.33070122,104270.0,104260.0,0.75404566]
[1750186318937,0.32176018,104270.0,104260.0,0.75404566]
[1750186319157,0.38421528,104270.0,104260.0,0.34]
[1750186319826,0.44181602,104270.0,104260.0,0.34]
[1750186320493,0.38421528,104270.0,104260.0,0.34]
[1750186320948,0.37526997,104270.0,104260.0,0.34]
[1750186321660,0.38423155,104270.0,104260.0,0.34]
[1750186322616,0.32113155,104270.0,104260.0,0.34]
[1750186322852,0.32113155,104270.0,104260.0,0.75404566]
[1750186323563,0.31216997,104270.0,104260.0,0.75404566]
[1750186323793,0.32114687,104270.0,104260.0,0.75404566]
[1750186324461,0.32114687,104270.0,104260.0,0.79219091]
[1750186325789,0.32114687,104270.0,104260.0,0.37814525]
[1750186326009,0.19856381,104270.0,104260.0,0.75404566]
[1750186326888,0.19856381,104270.0,104260.0,0.67127341]
[1750186327307,0.19856953,104270.0,104260.0,0.67127341]
[1750186328237,0.19856953,104270.0,104260.0,0.70377341]
[1750186328462,0.19856953,104270.0,104260.0,0.67127341]
[1750186328678,0.18958691,104270.0,104260.0,0.67127341]
[1750186328887,0.19857088,104270.0,104260.0,0.67127341]
[1750186333665,0.18958691,104270.0,104260.0,0.67127341]
[1750186335485,0.18958691,104270.0,104260.0,0.70127341]
[1750186335971,0.18958691,104270.0,104260.0,0.76663654]
[1750186339921,0.6465916,104270.0,104260.0,0.09536313]
[1750186340149,0.6465916,104270.0,104250.0,0.09536313]
[1750186340150,0.65154206,104270.0,104250.0,0.09536313]
[1750186340394,0.85069451,104260.0,104250.0,0.03814525]
[1750186340610,0.5194211,104260.0,104250.0,0.03814525]
[1750186340838,0.20143866,104250.0,104240.0,0.43536313]
[1750186341078,0.29768042,104250.0,104240.0,0.37814525]
[1750186341301,0.43120727,104250.0,104240.0,0.03814525]
[1750186341516,0.20145798,104240.0,104230.0,1.01634449]
[1750186341750,0.20145798,104240.0,104230.0,0.79978401]
[1750186341965,0.20145798,104240.0,104230.0,0.95914401]
[1750186342392,0.21105095,104240.0,104230.0,0.85700189]
[1750186342608,0.21105095,104240.0,104230.0,1.01631101]
[1750186343254,0.21205095,104240.0,104230.0,1.04560457]
[1750186343485,0.20245798,104240.0,104230.0,1.04560457]
[1750186344329,0.20345798,104240.0,104230.0,1.04560457]
[1750186345439,0.03077899,104240.0,104230.0,1.04560457]
[1750186345660,0.0403715,104240.0,104230.0,1.04560457]
[1750186345884,0.002,104240.0,104230.0,1.04560457]
[1750186346109,0.002,104240.0,104230.0,1.0074928]
[1750186346334,0.002,104240.0,104230.0,0.95027492]
[1750186346551,0.002,104240.0,104230.0,1.02676392]
[1750186347001,0.001,104240.0,104230.0,1.02676392]
[1750186347458,0.01059251,104240.0,104230.0,0.95027492]
[1750186347671,0.00959251,104240.0,104230.0,0.95027492]
[1750186348363,0.00959251,104240.0,104230.0,1.0073792]